[Event "Juniorallsvenskan 2019, Division 1 and 2"]
[Site "Molnlycke kulturhus, Biblioteksgatan 2, Molnlycke, Sweden"]
[Date "2019.11.24"]
[Round "5.2"]
[White "Berglind, Axel"]
[Black "Torngren, Gustav"]
[Result "1/2-1/2"]
[TimeControl "90 minutes + 30 seconds per move from move one"]
[BlackTitle "CM"]
[WhiteFideId "1720228"]
[BlackFideId "1728970"]
[WhiteElo "2062"]
[BlackElo "2247"]

1. d4 {[%clk 01:30:24]} {[%emt 00:00:32]} e6 {[%clk 01:30:12]} {[%emt
00:00:52]} 2. Nf3 {[%clk 01:30:48]} {[%emt 00:00:06]} d5 {[%clk 01:30:26]}
{[%emt 00:00:16]} 3. g3 {[%clk 01:31:11]} {[%emt 00:00:07]} Nf6 {[%clk
01:30:43]} {[%emt 00:00:13]} 4. Bg2 {[%clk 01:31:35]} {[%emt 00:00:06]} Bd6
{[%clk 01:30:13]} {[%emt 00:01:00]} 5. O-O {[%clk 01:31:58]} {[%emt 00:00:08]}
O-O {[%clk 01:29:52]} {[%emt 00:00:50]} 6. c4 {[%clk 01:31:04]} {[%emt
00:01:24]} c6 {[%clk 01:30:06]} {[%emt 00:00:16]} 7. Qc2 {[%clk 01:31:23]}
{[%emt 00:00:11]} b6 {[%clk 01:27:48]} {[%emt 00:02:48]} 8. Nbd2 {[%clk
01:31:48]} {[%emt 00:00:05]} Bb7 {[%clk 01:26:21]} {[%emt 00:01:57]} 9. e4
{[%clk 01:31:34]} {[%emt 00:00:44]} dxe4 {[%clk 01:26:11]} {[%emt 00:00:40]} 10.
Nxe4 {[%clk 01:31:51]} {[%emt 00:00:13]} Nxe4 {[%clk 01:26:19]} {[%emt
00:00:21]} 11. Qxe4 {[%clk 01:32:16]} {[%emt 00:00:05]} Nd7 {[%clk 01:25:55]}
{[%emt 00:00:53]} 12. Ne5 {[%clk 01:19:52]} {[%emt 00:12:55]} Rc8 {[%clk
01:18:47]} {[%emt 00:07:39]} 13. Rd1 {[%clk 01:06:41]} {[%emt 00:13:41]} Nf6
{[%clk 01:16:34]} {[%emt 00:02:42]} 14. Qe2 {[%clk 01:05:50]} {[%emt 00:01:21]}
Qe7 {[%clk 01:06:51]} {[%emt 00:10:13]} 15. Bg5 {[%clk 01:05:49]} {[%emt
00:00:32]} Rfd8 {[%clk 01:05:41]} {[%emt 00:01:39]} 16. Ng4 {[%clk 01:05:56]}
{[%emt 00:00:24]} h6 {[%clk 00:40:04]} {[%emt 00:26:08]} 17. Nxf6+ {[%clk
01:03:20]} {[%emt 00:03:06]} Kh8 {[%clk 00:36:21]} {[%emt 00:04:13]} 18. Ne4
{[%clk 01:03:43]} {[%emt 00:00:06]} hxg5 {[%clk 00:36:40]} {[%emt 00:00:12]} 19.
Qh5+ {[%clk 01:04:08]} {[%emt 00:00:05]} Kg8 {[%clk 00:37:08]} {[%emt
00:00:02]} 20. Nxg5 {[%clk 01:04:28]} {[%emt 00:00:10]} Qf6 {[%clk 00:37:31]}
{[%emt 00:00:07]} 21. Qh7+ {[%clk 01:03:20]} {[%emt 00:01:37]} Kf8 {[%clk
00:37:42]} {[%emt 00:00:19]} 22. Ne4 {[%clk 01:03:43]} {[%emt 00:00:07]} Qh6
{[%clk 00:35:50]} {[%emt 00:02:22]} 23. Qxh6 {[%clk 01:04:02]} {[%emt
00:00:11]} gxh6 {[%clk 00:36:18]} {[%emt 00:00:02]} 24. Nxd6 {[%clk 00:53:02]}
{[%emt 00:11:30]} Rxd6 {[%clk 00:36:45]} {[%emt 00:00:02]} 25. c5 {[%clk
00:53:17]} {[%emt 00:00:15]} Rd7 {[%clk 00:35:32]} {[%emt 00:01:42]} 26. cxb6
{[%clk 00:53:09]} {[%emt 00:00:39]} axb6 {[%clk 00:35:48]} {[%emt 00:00:14]} 27.
Rac1 {[%clk 00:53:36]} {[%emt 00:00:04]} Rd6 {[%clk 00:33:27]} {[%emt
00:02:51]} 28. Rc3 {[%clk 00:51:42]} {[%emt 00:02:23]} Rc7 {[%clk 00:27:03]}
{[%emt 00:06:53]} 29. Rdc1 {[%clk 00:49:25]} {[%emt 00:02:48]} Rxd4 {[%clk
00:23:41]} {[%emt 00:03:53]} 30. Bxc6 {[%clk 00:49:45]} {[%emt 00:00:10]} Bxc6
{[%clk 00:21:47]} {[%emt 00:02:24]} 31. Rxc6 {[%clk 00:50:07]} {[%emt
00:00:08]} Rd1+ {[%clk 00:22:01]} {[%emt 00:00:15]} 32. Rxd1 {[%clk 00:50:32]}
{[%emt 00:00:05]} Rxc6 {[%clk 00:22:28]} {[%emt 00:00:03]} 33. Rd4 {[%clk
00:48:10]} {[%emt 00:02:52]} Ke7 {[%clk 00:21:11]} {[%emt 00:01:48]} 34. Kg2
{[%clk 00:48:20]} {[%emt 00:00:20]} b5 {[%clk 00:16:31]} {[%emt 00:05:09]} 35.
Kf3 {[%clk 00:47:37]} {[%emt 00:01:13]} f5 {[%clk 00:15:36]} {[%emt 00:01:24]}
36. Rh4 {[%clk 00:44:00]} {[%emt 00:04:07]} e5 {[%clk 00:12:28]} {[%emt
00:03:38]} 37. Rb4 {[%clk 00:44:26]} {[%emt 00:00:04]} Rc5 {[%clk 00:13:02]}
{[%emt 00:00:26]} 38. a4 {[%clk 00:45:15]} {[%emt 00:00:11]} bxa4 {[%clk
00:13:11]} {[%emt 00:00:20]} 39. Rxa4 {[%clk 00:45:40]} {[%emt 00:00:05]} Rb5
{[%clk 00:11:30]} {[%emt 00:02:11]} 40. b4 {[%clk 00:45:57]} {[%emt 00:00:13]}
Kf6 {[%clk 00:11:14]} {[%emt 00:00:46]} 41. Ra6+ {[%clk 00:46:12]} {[%emt
00:00:15]} Kg7 {[%clk 00:11:17]} {[%emt 00:00:27]} 42. Ra4 {[%clk 00:44:55]}
{[%emt 00:01:47]} Kg6 {[%clk 00:11:12]} {[%emt 00:00:36]} 43. Ke3 {[%clk
00:44:46]} {[%emt 00:00:39]} Kg5 {[%clk 00:10:03]} {[%emt 00:01:39]} 44. h3
{[%clk 00:41:01]} {[%emt 00:04:15]} Rb8 {[%clk 00:09:10]} {[%emt 00:01:23]} 45.
Kd3 {[%clk 00:40:14]} {[%emt 00:01:17]} f4 {[%clk 00:07:36]} {[%emt 00:02:04]}
46. Kc4 {[%clk 00:35:49]} {[%emt 00:04:54]} fxg3 {[%clk 00:07:15]} {[%emt
00:00:52]} 47. fxg3 {[%clk 00:36:17]} {[%emt 00:00:01]} Kf5 {[%clk 00:06:39]}
{[%emt 00:01:06]} 48. Ra6 {[%clk 00:33:28]} {[%emt 00:03:18]} Rc8+ {[%clk
00:06:15]} {[%emt 00:00:54]} 49. Kd3 {[%clk 00:29:14]} {[%emt 00:04:45]} e4+
{[%clk 00:05:44]} {[%emt 00:01:01]} 50. Kd2 {[%clk 00:29:37]} {[%emt 00:00:06]}
Rd8+ {[%clk 00:06:07]} {[%emt 00:00:09]} 51. Ke2 {[%clk 00:30:01]} {[%emt
00:00:05]} Rb8 {[%clk 00:05:43]} {[%emt 00:00:54]} 52. Rxh6 {[%clk 00:29:42]}
{[%emt 00:00:49]} Rxb4 {[%clk 00:06:10]} {[%emt 00:00:03]} 53. Rh5+ {[%clk
00:29:48]} {[%emt 00:00:24]} Kg6 {[%clk 00:04:55]} {[%emt 00:01:43]} 54. Ra5
{[%clk 00:28:40]} {[%emt 00:01:38]} Rb3 {[%clk 00:04:36]} {[%emt 00:00:50]} 55.
Kf2 {[%clk 00:29:00]} {[%emt 00:00:09]} Rf3+ {[%clk 00:04:06]} {[%emt
00:01:00]} 56. Kg2 {[%clk 00:29:25]} {[%emt 00:00:05]} Rb3 {[%clk 00:04:32]}
{[%emt 00:00:03]} 57. Re5 {[%clk 00:28:25]} {[%emt 00:01:29]} Rb2+ {[%clk
00:03:35]} {[%emt 00:01:28]} 58. Kf1 {[%clk 00:28:39]} {[%emt 00:00:16]} Rb4
{[%clk 00:03:10]} {[%emt 00:00:55]} 59. h4 {[%clk 00:27:59]} {[%emt 00:01:10]}
Kf6 {[%clk 00:03:35]} {[%emt 00:00:05]} 60. Re8 {[%clk 00:28:23]} {[%emt
00:00:06]} Kf5 {[%clk 00:03:41]} {[%emt 00:00:24]} 61. Kg2 {[%clk 00:28:42]}
{[%emt 00:00:11]} Rb2+ {[%clk 00:02:13]} {[%emt 00:01:58]} 62. Kh3 {[%clk
00:29:05]} {[%emt 00:00:07]} Rb1 {[%clk 00:01:29]} {[%emt 00:01:14]} 63. Rf8+
{[%clk 00:29:28]} {[%emt 00:00:07]} Ke5 {[%clk 00:01:51]} {[%emt 00:00:08]} 64.
Kg4 {[%clk 00:29:17]} {[%emt 00:00:41]} e3 {[%clk 00:01:51]} {[%emt 00:00:30]}
65. h5 {[%clk 00:28:22]} {[%emt 00:01:25]} Rh1 {[%clk 00:01:08]} {[%emt
00:01:13]} 66. Re8+ {[%clk 00:28:43]} {[%emt 00:00:09]} Kd4 {[%clk 00:01:33]}
{[%emt 00:00:05]} 67. Kg5 {[%clk 00:27:30]} {[%emt 00:01:43]} Kd3 {[%clk
00:01:53]} {[%emt 00:00:09]} 68. h6 {[%clk 00:27:44]} {[%emt 00:00:18]} e2
{[%clk 00:02:15]} {[%emt 00:00:08]} 69. g4 {[%clk 00:27:32]} {[%emt 00:00:41]}
e1=Q {[%clk 00:02:33]} {[%emt 00:00:12]} 70. Rxe1 {[%clk 00:27:57]} {[%emt
00:00:05]} Rxe1 {[%clk 00:03:00]} {[%emt 00:00:02]} 71. Kf6 {[%clk 00:27:00]}
{[%emt 00:01:27]} Rh1 {[%clk 00:02:54]} {[%emt 00:00:37]} 72. g5 {[%clk
00:27:00]} {[%emt 00:00:30]} Ke4 {[%clk 00:03:12]} {[%emt 00:00:12]} 73. Kg7
{[%clk 00:27:18]} {[%emt 00:00:12]} Kf5 {[%clk 00:03:33]} {[%emt 00:00:09]} 74.
h7 {[%clk 00:27:32]} {[%emt 00:00:16]} Rxh7+ {[%clk 00:03:57]} {[%emt
00:00:07]} 75. Kxh7 {[%clk 00:27:58]} {[%emt 00:00:05]} Kxg5 {[%clk 00:04:21]}
{[%emt 00:00:05]} 1/2-1/2

[Event "Juniorallsvenskan 2019, Division 1 and 2"]
[Site "Molnlycke kulturhus, Biblioteksgatan 2, Molnlycke, Sweden"]
[Date "2019.11.24"]
[Round "5.3"]
[White "Olsson, William"]
[Black "Crevatin, Leo"]
[Result "0-1"]
[TimeControl "90 minutes + 30 seconds per move from move one"]
[BlackTitle "CM"]
[WhiteFideId "1741721"]
[BlackFideId "1726307"]
[WhiteElo "2035"]
[BlackElo "2231"]

1. Nf3 {[%clk 01:30:12]} {[%emt 00:00:48]} d5 {[%clk 01:30:17]} {[%emt
00:00:43]} 2. d4 {[%clk 01:30:34]} {[%emt 00:00:09]} Nf6 {[%clk 01:30:40]}
{[%emt 00:00:06]} 3. c4 {[%clk 01:30:51]} {[%emt 00:00:13]} c6 {[%clk
01:31:07]} {[%emt 00:00:02]} 4. Nc3 {[%clk 01:31:18]} {[%emt 00:00:03]} e6
{[%clk 01:31:35]} {[%emt 00:00:01]} 5. e3 {[%clk 01:31:39]} {[%emt 00:00:10]}
Nbd7 {[%clk 01:32:02]} {[%emt 00:00:03]} 6. Bd3 {[%clk 01:31:51]} {[%emt
00:00:19]} dxc4 {[%clk 01:32:28]} {[%emt 00:00:02]} 7. Bxc4 {[%clk 01:32:13]}
{[%emt 00:00:09]} b5 {[%clk 01:32:54]} {[%emt 00:00:03]} 8. Bd3 {[%clk
01:32:38]} {[%emt 00:00:06]} Bd6 {[%clk 01:33:22]} {[%emt 00:00:02]} 9. a3
{[%clk 01:31:59]} {[%emt 00:01:09]} a5 {[%clk 01:32:58]} {[%emt 00:00:54]} 10.
e4 {[%clk 01:21:02]} {[%emt 00:11:27]} e5 {[%clk 01:31:26]} {[%emt 00:02:01]}
11. Qe2 {[%clk 01:12:37]} {[%emt 00:08:55]} O-O {[%clk 01:29:12]} {[%emt
00:02:41]} 12. d5 {[%clk 01:12:01]} {[%emt 00:01:10]} cxd5 {[%clk 01:29:28]}
{[%emt 00:00:13]} 13. Nxb5 {[%clk 01:11:56]} {[%emt 00:00:35]} Bc5 {[%clk
01:29:39]} {[%emt 00:00:19]} 14. Bg5 {[%clk 01:09:56]} {[%emt 00:02:30]} dxe4
{[%clk 01:25:49]} {[%emt 00:04:20]} 15. Bxe4 {[%clk 01:09:39]} {[%emt
00:00:48]} Rb8 {[%clk 01:25:49]} {[%emt 00:00:29]} 16. Nc3 {[%clk 01:06:20]}
{[%emt 00:03:50]} Qb6 {[%clk 01:22:02]} {[%emt 00:04:17]} 17. Na4 {[%clk
01:03:11]} {[%emt 00:03:39]} Bxf2+ {[%clk 01:22:04]} {[%emt 00:00:27]} 18. Kf1
{[%clk 01:02:12]} {[%emt 00:01:29]} Ba6 {[%clk 01:19:01]} {[%emt 00:03:33]} 19.
Nxb6 {[%clk 01:00:24]} {[%emt 00:02:18]} Bxe2+ {[%clk 01:19:27]} {[%emt
00:00:04]} 20. Kxe2 {[%clk 00:59:37]} {[%emt 00:01:17]} Rxb6 {[%clk 01:19:43]}
{[%emt 00:00:14]} 21. Bxh7+ {[%clk 00:58:27]} {[%emt 00:01:40]} Nxh7 {[%clk
01:19:32]} {[%emt 00:00:41]} 22. Kxf2 {[%clk 00:58:46]} {[%emt 00:00:11]} Nxg5
{[%clk 01:19:59]} {[%emt 00:00:03]} 23. Nxg5 {[%clk 00:58:58]} {[%emt
00:00:17]} Rxb2+ {[%clk 01:20:25]} {[%emt 00:00:05]} 24. Kg3 {[%clk 00:59:04]}
{[%emt 00:00:24]} Rb3+ {[%clk 01:16:51]} {[%emt 00:04:04]} 25. Kf2 {[%clk
00:58:26]} {[%emt 00:01:08]} f6 {[%clk 01:15:45]} {[%emt 00:01:36]} 26. Ne4
{[%clk 00:57:15]} {[%emt 00:01:40]} Rc8 {[%clk 01:14:57]} {[%emt 00:01:17]} 27.
Ra2 {[%clk 00:56:35]} {[%emt 00:01:11]} Nc5 {[%clk 01:14:06]} {[%emt 00:01:20]}
28. Nxc5 {[%clk 00:54:58]} {[%emt 00:02:08]} Rxc5 {[%clk 01:14:34]} {[%emt
00:00:02]} 29. Rd1 {[%clk 00:55:20]} {[%emt 00:00:08]} Kh7 {[%clk 01:13:25]}
{[%emt 00:01:38]} 30. Rd8 {[%clk 00:53:49]} {[%emt 00:02:01]} Rcc3 {[%clk
01:12:00]} {[%emt 00:01:55]} 31. Ra8 {[%clk 00:53:54]} {[%emt 00:00:26]} Rc5
{[%clk 01:11:21]} {[%emt 00:01:08]} 32. Ra7 {[%clk 00:53:04]} {[%emt 00:01:21]}
Kg6 {[%clk 01:10:29]} {[%emt 00:01:22]} 33. h3 {[%clk 00:52:22]} {[%emt
00:01:12]} e4 {[%clk 01:06:19]} {[%emt 00:04:40]} 34. a4 {[%clk 00:52:43]}
{[%emt 00:00:09]} e3+ {[%clk 01:06:11]} {[%emt 00:00:37]} 35. Kg1 {[%clk
00:47:44]} {[%emt 00:05:30]} Re5 {[%clk 01:05:31]} {[%emt 00:01:09]} 36. Kf1
{[%clk 00:46:57]} {[%emt 00:01:17]} Rb1+ {[%clk 01:03:55]} {[%emt 00:02:06]} 37.
Ke2 {[%clk 00:47:16]} {[%emt 00:00:11]} Rg1 {[%clk 01:04:06]} {[%emt 00:00:18]}
38. Kd3 {[%clk 00:47:02]} {[%emt 00:00:46]} Re1 {[%clk 01:03:18]} {[%emt
00:01:17]} 39. Rc2 {[%clk 00:44:48]} {[%emt 00:02:45]} e2 {[%clk 01:03:31]}
{[%emt 00:00:16]} 0-1

[Event "Juniorallsvenskan 2019, Division 1 and 2"]
[Site "Molnlycke kulturhus, Biblioteksgatan 2, Molnlycke, Sweden"]
[Date "2019.11.24"]
[Round "5.4"]
[White "Narva, David"]
[Black "Aira, Leonardo"]
[Result "1-0"]
[TimeControl "90 minutes + 30 seconds per move from move one"]
[WhiteFideId "24128856"]
[BlackFideId "1721097"]
[WhiteElo "1979"]
[BlackElo "1955"]

1. d4 {[%clk 01:30:13]} {[%emt 00:00:46]} e6 {[%clk 01:30:43]} {[%emt
00:00:17]} 2. Nf3 {[%clk 01:30:38]} {[%emt 00:00:05]} d5 {[%clk 01:30:56]}
{[%emt 00:00:17]} 3. e3 {[%clk 01:30:58]} {[%emt 00:00:10]} Be7 {[%clk
01:31:09]} {[%emt 00:00:16]} 4. Bd3 {[%clk 01:31:17]} {[%emt 00:00:12]} Nf6
{[%clk 01:31:10]} {[%emt 00:00:28]} 5. Nbd2 {[%clk 01:31:28]} {[%emt 00:00:19]}
c5 {[%clk 01:28:38]} {[%emt 00:03:02]} 6. b3 {[%clk 01:30:51]} {[%emt
00:01:07]} Nc6 {[%clk 01:26:47]} {[%emt 00:02:20]} 7. Bb2 {[%clk 01:28:45]}
{[%emt 00:02:37]} Qa5 {[%clk 01:15:16]} {[%emt 00:12:00]} 8. dxc5 {[%clk
01:26:21]} {[%emt 00:02:54]} Qxc5 {[%clk 01:13:53]} {[%emt 00:01:52]} 9. a3
{[%clk 01:22:09]} {[%emt 00:04:43]} a5 {[%clk 01:08:08]} {[%emt 00:06:15]} 10.
O-O {[%clk 01:21:18]} {[%emt 00:01:22]} O-O {[%clk 01:05:16]} {[%emt 00:03:22]}
11. Qe2 {[%clk 01:19:28]} {[%emt 00:02:20]} Ne8 {[%clk 00:56:22]} {[%emt
00:09:24]} 12. b4 {[%clk 01:16:35]} {[%emt 00:03:24]} Qb6 {[%clk 00:49:18]}
{[%emt 00:07:32]} 13. b5 {[%clk 01:16:47]} {[%emt 00:00:19]} e5 {[%clk
00:37:07]} {[%emt 00:12:41]} 14. bxc6 {[%clk 01:04:01]} {[%emt 00:13:16]} Qxb2
{[%clk 00:31:07]} {[%emt 00:06:30]} 15. cxb7 {[%clk 00:56:58]} {[%emt
00:07:33]} Qxb7 {[%clk 00:30:33]} {[%emt 00:01:03]} 16. Nxe5 {[%clk 00:56:39]}
{[%emt 00:00:49]} Bf6 {[%clk 00:25:35]} {[%emt 00:05:28]} 17. Rab1 {[%clk
00:56:58]} {[%emt 00:00:12]} Qc7 {[%clk 00:25:25]} {[%emt 00:00:39]} 18. Nef3
{[%clk 00:53:57]} {[%emt 00:03:32]} Nd6 {[%clk 00:20:58]} {[%emt 00:04:56]} 19.
e4 {[%clk 00:52:21]} {[%emt 00:02:07]} Re8 {[%clk 00:17:18]} {[%emt 00:04:10]}
20. e5 {[%clk 00:52:28]} {[%emt 00:00:23]} Nc4 {[%clk 00:17:19]} {[%emt
00:00:27]} 21. Nxc4 {[%clk 00:52:36]} {[%emt 00:00:23]} dxc4 {[%clk 00:16:42]}
{[%emt 00:01:08]} 22. Bxc4 {[%clk 00:41:19]} {[%emt 00:11:47]} Bxe5 {[%clk
00:14:46]} {[%emt 00:02:26]} 23. Nxe5 {[%clk 00:41:31]} {[%emt 00:00:17]} Rxe5
{[%clk 00:05:25]} {[%emt 00:09:51]} 24. Bxf7+ {[%clk 00:40:08]} {[%emt
00:01:54]} Kh8 {[%clk 00:05:43]} {[%emt 00:00:11]} 25. Qf3 {[%clk 00:40:21]}
{[%emt 00:00:18]} Ra6 {[%clk 00:04:20]} {[%emt 00:01:52]} 26. Ba2 {[%clk
00:36:59]} {[%emt 00:03:51]} Rf6 {[%clk 00:03:58]} {[%emt 00:00:53]} 27. Qb3
{[%clk 00:35:52]} {[%emt 00:01:37]} Rf8 {[%clk 00:03:51]} {[%emt 00:00:38]} 28.
Rbe1 {[%clk 00:30:12]} {[%emt 00:06:04]} Rh5 {[%clk 00:02:07]} {[%emt
00:02:18]} 29. h3 {[%clk 00:20:46]} {[%emt 00:09:57]} Qc6 {[%clk 00:00:36]}
{[%emt 00:01:59]} 30. Qg3 {[%clk 00:09:17]} {[%emt 00:12:01]} Ba6 {[%clk
00:00:34]} {[%emt 00:00:32]} 31. Re7 {[%clk 00:07:00]} {[%emt 00:02:47]} Qf6
{[%clk 00:00:32]} {[%emt 00:00:33]} 32. Re6 {[%clk 00:07:11]} {[%emt 00:00:18]}
Qf7 {[%clk 00:00:37]} {[%emt 00:00:25]} 33. Rfe1 {[%clk 00:04:38]} {[%emt
00:03:03]} Bc8 {[%clk 00:00:33]} {[%emt 00:00:35]} 34. Re8 {[%clk 00:01:52]}
{[%emt 00:03:14]} Rxe8 {[%clk 00:00:34]} {[%emt 00:00:30]} 35. Bxf7 {[%clk
00:02:16]} {[%emt 00:00:06]} Rxe1+ {[%clk 00:01:01]} {[%emt 00:00:04]} 36. Kh2
{[%clk 00:02:43]} {[%emt 00:00:03]} Rhe5 {[%clk 00:00:38]} {[%emt 00:00:52]} 37.
Qc3 {[%clk 00:02:06]} {[%emt 00:01:07]} Be6 {[%clk 00:00:39]} {[%emt 00:00:30]}
38. Bxe6 {[%clk 00:01:16]} {[%emt 00:01:19]} Rxe6 {[%clk 00:01:05]} {[%emt
00:00:05]} 39. Qxa5 {[%clk 00:01:36]} {[%emt 00:00:10]} h6 {[%clk 00:00:47]}
{[%emt 00:00:48]} 40. c4 {[%clk 00:01:15]} {[%emt 00:00:51]} R1e2 {[%clk
00:00:35]} {[%emt 00:00:42]} 41. Qd5 {[%clk 00:00:35]} {[%emt 00:01:09]} Re7
{[%clk 00:00:32]} {[%emt 00:00:34]} 42. c5 {[%clk 00:00:36]} {[%emt 00:00:29]}
R2e5 {[%clk 00:00:43]} {[%emt 00:00:18]} 43. Qd4 {[%clk 00:00:44]} {[%emt
00:00:22]} Re4 {[%clk 00:00:52]} {[%emt 00:00:22]} 44. Qd3 {[%clk 00:01:08]}
{[%emt 00:00:05]} R4e6 {[%clk 00:00:51]} {[%emt 00:00:29]} 45. c6 {[%clk
00:01:14]} {[%emt 00:00:25]} Re8 {[%clk 00:00:43]} {[%emt 00:00:38]} 46. c7
{[%clk 00:01:13]} {[%emt 00:00:31]} Rc8 {[%clk 00:00:57]} {[%emt 00:00:16]} 47.
Qd7 {[%clk 00:01:02]} {[%emt 00:00:42]} Ree8 {[%clk 00:01:05]} {[%emt
00:00:22]} 48. a4 {[%clk 00:00:56]} {[%emt 00:00:37]} Kg8 {[%clk 00:00:47]}
{[%emt 00:00:49]} 49. a5 {[%clk 00:00:49]} {[%emt 00:00:37]} Rf8 {[%clk
00:00:36]} {[%emt 00:00:41]} 50. a6 {[%clk 00:00:53]} {[%emt 00:00:25]} Rfe8
{[%clk 00:00:45]} {[%emt 00:00:21]} 51. a7 {[%clk 00:00:42]} {[%emt 00:00:42]}
Ra8 {[%clk 00:00:52]} {[%emt 00:00:21]} 52. Qc6 {[%clk 00:00:36]} {[%emt
00:00:38]} Rf8 {[%clk 00:01:09]} {[%emt 00:00:11]} 53. Kg3 {[%clk 00:00:44]}
{[%emt 00:00:23]} Kh8 {[%clk 00:01:02]} {[%emt 00:00:38]} 54. Kg4 {[%clk
00:00:52]} {[%emt 00:00:21]} Rfc8 {[%clk 00:01:02]} {[%emt 00:00:31]} 55. Qd5
{[%clk 00:00:38]} {[%emt 00:00:42]} Rf8 {[%clk 00:01:08]} {[%emt 00:00:24]} 56.
Qb7 {[%clk 00:00:36]} {[%emt 00:00:33]} Kh7 {[%clk 00:00:40]} {[%emt 00:00:59]}
57. f4 {[%clk 00:00:52]} {[%emt 00:00:13]} Kh8 {[%clk 00:00:52]} {[%emt
00:00:17]} 58. f5 {[%clk 00:01:07]} {[%emt 00:00:16]} Rg8 {[%clk 00:00:48]}
{[%emt 00:00:34]} 59. Kh5 {[%clk 00:00:55]} {[%emt 00:00:41]} Rgf8 {[%clk
00:01:01]} {[%emt 00:00:18]} 60. f6 {[%clk 00:01:10]} {[%emt 00:00:15]} gxf6
{[%clk 00:01:08]} {[%emt 00:00:23]} 61. c8=Q {[%clk 00:00:53]} {[%emt
00:00:46]} Raxc8 {[%clk 00:00:40]} {[%emt 00:00:59]} 62. Kxh6 {[%clk 00:01:13]}
{[%emt 00:00:09]} 1-0

[Event "Juniorallsvenskan 2019, Division 1 and 2"]
[Site "Molnlycke kulturhus, Biblioteksgatan 2, Molnlycke, Sweden"]
[Date "2019.11.24"]
[Round "5.5"]
[White "Rasti, Arvin"]
[Black "Nilsson, Joakim"]
[Result "1/2-1/2"]
[TimeControl "90 minutes + 30 seconds per move from move one"]
[BlackTitle "FM"]
[WhiteFideId "1741160"]
[BlackFideId "1723383"]
[WhiteElo "2206"]
[BlackElo "2288"]

1. Nf3 {[%clk 01:30:49]} {[%emt 00:00:10]} e6 {[%clk 01:30:38]} {[%emt
00:00:19]} 2. g3 {[%clk 01:31:13]} {[%emt 00:00:09]} d5 {[%clk 01:30:44]}
{[%emt 00:00:24]} 3. Bg2 {[%clk 01:31:34]} {[%emt 00:00:08]} Nf6 {[%clk
01:31:07]} {[%emt 00:00:08]} 4. c4 {[%clk 01:31:29]} {[%emt 00:00:35]} Be7
{[%clk 01:30:06]} {[%emt 00:01:31]} 5. O-O {[%clk 01:31:14]} {[%emt 00:00:44]}
O-O {[%clk 01:30:29]} {[%emt 00:00:06]} 6. b3 {[%clk 01:31:28]} {[%emt
00:00:17]} c5 {[%clk 01:28:25]} {[%emt 00:02:34]} 7. e3 {[%clk 01:25:09]}
{[%emt 00:06:49]} Nc6 {[%clk 01:28:27]} {[%emt 00:00:28]} 8. d4 {[%clk
01:24:28]} {[%emt 00:01:12]} cxd4 {[%clk 01:26:35]} {[%emt 00:02:21]} 9. exd4
{[%clk 01:24:32]} {[%emt 00:00:25]} b6 {[%clk 01:23:53]} {[%emt 00:03:13]} 10.
Bb2 {[%clk 01:23:43]} {[%emt 00:01:18]} Ba6 {[%clk 01:22:27]} {[%emt 00:01:55]}
11. Nbd2 {[%clk 01:23:27]} {[%emt 00:00:47]} Rc8 {[%clk 01:21:35]} {[%emt
00:01:22]} 12. Rc1 {[%clk 01:23:34]} {[%emt 00:00:23]} Re8 {[%clk 01:06:58]}
{[%emt 00:15:08]} 13. Re1 {[%clk 01:19:44]} {[%emt 00:04:19]} Bf8 {[%clk
01:02:42]} {[%emt 00:04:46]} 14. Ne5 {[%clk 01:05:52]} {[%emt 00:14:22]} Bb7
{[%clk 00:59:53]} {[%emt 00:03:20]} 15. Ndf3 {[%clk 01:05:32]} {[%emt
00:00:50]} Ne4 {[%clk 00:54:20]} {[%emt 00:06:03]} 16. Nxc6 {[%clk 00:54:57]}
{[%emt 00:11:05]} 1/2-1/2

[Event "Juniorallsvenskan 2019, Division 1 and 2"]
[Site "Molnlycke kulturhus, Biblioteksgatan 2, Molnlycke, Sweden"]
[Date "2019.11.24"]
[Round "5.6"]
[White "Mitra, Akash"]
[Black "Storme, Isak"]
[Result "0-1"]
[TimeControl "90 minutes + 30 seconds per move from move one"]
[BlackTitle "FM"]
[WhiteFideId "1726714"]
[BlackFideId "1728113"]
[WhiteElo "1975"]
[BlackElo "2229"]

1. d4 {[%clk 01:30:37]} {[%emt 00:00:22]} d5 {[%clk 01:30:40]} {[%emt
00:00:20]} 2. Bf4 {[%clk 01:31:00]} {[%emt 00:00:08]} c5 {[%clk 01:30:42]}
{[%emt 00:00:26]} 3. e3 {[%clk 01:31:23]} {[%emt 00:00:08]} cxd4 {[%clk
01:30:58]} {[%emt 00:00:15]} 4. exd4 {[%clk 01:31:30]} {[%emt 00:00:23]} Nc6
{[%clk 01:31:21]} {[%emt 00:00:06]} 5. c3 {[%clk 01:31:07]} {[%emt 00:00:53]}
f6 {[%clk 01:31:36]} {[%emt 00:00:15]} 6. Bd3 {[%clk 01:29:20]} {[%emt
00:02:16]} e5 {[%clk 01:26:38]} {[%emt 00:05:29]} 7. dxe5 {[%clk 01:24:40]}
{[%emt 00:05:11]} fxe5 {[%clk 01:26:29]} {[%emt 00:00:39]} 8. Qh5+ {[%clk
01:23:50]} {[%emt 00:01:19]} g6 {[%clk 01:23:16]} {[%emt 00:03:43]} 9. Bxg6+
{[%clk 01:23:57]} {[%emt 00:00:23]} hxg6 {[%clk 01:21:27]} {[%emt 00:02:18]} 10.
Qxh8 {[%clk 01:19:56]} {[%emt 00:04:31]} exf4 {[%clk 01:20:27]} {[%emt
00:01:31]} 11. Qxg8 {[%clk 01:17:52]} {[%emt 00:02:34]} Qe7+ {[%clk 01:20:49]}
{[%emt 00:00:07]} 12. Kd2 {[%clk 01:14:35]} {[%emt 00:03:47]} Bf5 {[%clk
01:18:52]} {[%emt 00:02:26]} 13. Nf3 {[%clk 01:13:42]} {[%emt 00:01:23]} O-O-O
{[%clk 01:18:56]} {[%emt 00:00:26]} 14. Re1 {[%clk 01:11:37]} {[%emt 00:02:36]}
Qf6 {[%clk 01:16:34]} {[%emt 00:02:50]} 15. Qh7 {[%clk 01:10:25]} {[%emt
00:01:44]} d4 {[%clk 01:16:31]} {[%emt 00:00:33]} 16. Kc1 {[%clk 01:09:29]}
{[%emt 00:01:25]} dxc3 {[%clk 01:16:56]} {[%emt 00:00:06]} 17. Nxc3 {[%clk
01:09:41]} {[%emt 00:00:19]} Qxc3+ {[%clk 01:17:17]} {[%emt 00:00:08]} 18. bxc3
{[%clk 01:10:09]} {[%emt 00:00:03]} Ba3# {[%clk 01:17:39]} {[%emt 00:00:07]}
0-1